lending/lending_fUSD_20250808
["ID","MTS","AMOUNT","RATE_DAILY","PERIOD"]
[378045828,1754686233963,-198.24371344,0.00021918,2]
[378045829,1754686233973,-150.0,0.00022192,2]
[378045830,1754686233984,-195.85,0.00022459,2]
[378045831,1754686233994,-200.0,0.00022466,2]
[378045832,1754686234004,-150.99,0.00022562,2]
[378045833,1754686234014,-208.16,0.00023271,2]
[378045834,1754686234024,-515.0,0.00023475,2]
[378045835,1754686234034,-457.64618948,0.000236,2]
[378045836,1754686234043,-1000.0,0.00023626,2]
[378045837,1754686234053,-500.0,0.0002368,2]
[378045838,1754686234062,-165.52,0.00023809,2]
[378045839,1754686234071,-511.56380774,0.0002411,30]
[378045840,1754686234080,-267.46074303,0.00024276,2]
[378045841,1754686234090,-159.53779889,0.00024557,2]
[378045842,1754686234099,-172.2,0.00024651,2]
[378045843,1754686234109,-495.05,0.00024657,2]
[378045844,1754686234118,-400.0,0.00024657,2]
[378045845,1754686234127,-411.19,0.00024657,2]
[378045846,1754686234136,-400.0,0.00024657,2]
[378045847,1754686234146,-400.0,0.00024657,2]
[378045848,1754686234155,-400.0,0.00024657,2]
[378045849,1754686234164,-400.0,0.00024657,2]
[378045850,1754686234173,-400.0,0.00024657,2]
[378045851,1754686234183,-400.0,0.00024657,2]
[378045852,1754686234193,-400.0,0.00024657,2]
[378045853,1754686234202,-400.0,0.00024657,2]
[378045854,1754686234211,-400.0,0.00024657,2]
[378045855,1754686234221,-400.0,0.00024657,2]
[378045856,1754686234231,-400.0,0.00024657,2]
[378045857,1754686234240,-407.81,0.00024657,2]
[378045858,1754686234250,-400.0,0.00024657,2]
[378045859,1754686234260,-415.12,0.00024657,2]
[378045860,1754686234269,-544.72,0.00024657,2]
[378045861,1754686234279,-286.26620907,0.00024657,2]
[378045862,1754686234289,-333.61767696,0.00024657,2]
[378045864,1754686238004,-162.69256007,0.00018098,2]
[378045865,1754686238013,-225.68921646,0.00019261,2]
[378045866,1754686238023,-240.04204534,0.00019762,3]
[378045867,1754686238059,-1647.95795466,0.00019762,3]
[378045868,1754686238069,-375.06,0.00020878,2]
[378045869,1754686238078,-3776.0,0.00022002,3]
[378045870,1754686238088,-190.05232304,0.00024657,2]
[378045871,1754686238098,-400.0,0.00024657,2]
[378045872,1754686238108,-400.0,0.00024657,2]
[378045873,1754686238117,-400.0,0.00024657,2]
[378045874,1754686238127,-201.0,0.00024657,2]
[378045875,1754686238136,-300.0,0.00024657,2]
[378045876,1754686238147,-400.0,0.00024657,2]
[378045877,1754686238156,-200.4459988,0.00024657,2]
[378045878,1754686238179,-199.5540012,0.00024657,2]
[378045879,1754686238190,-400.0,0.00024657,2]
[378045880,1754686238199,-507.52,0.00024657,2]
[378045881,1754686238208,-400.0,0.00024657,2]
[378045882,1754686238218,-400.0,0.00024657,2]
[378045883,1754686238229,-400.0,0.00024657,2]
[378045884,1754686238238,-400.0,0.00024657,2]
[378045885,1754686238248,-492.47,0.00024657,2]
[378045886,1754686238258,-526.42701651,0.00024657,2]
[378045887,1754686238268,-400.0,0.00024657,2]
[378045888,1754686238278,-172.64,0.00024657,2]
[378045889,1754686238288,-500.0,0.00024657,2]
[378045890,1754686238298,-400.0,0.00024657,2]
[378045891,1754686238309,-400.0,0.00024657,2]
[378045892,1754686238318,-196.62178776,0.00024657,2]
[378045893,1754686238330,-345.22821224,0.00024657,2]
[378045894,1754686238339,-400.0,0.00024657,2]
[378045895,1754686238349,-400.0,0.00024657,2]
[378045896,1754686238358,-403.596,0.00024657,2]
[378045897,1754686238368,-391.94635472,0.00024657,2]
[378045898,1754686238380,-8.05364528,0.00024657,2]
[378045899,1754686238389,-182.93,0.00024657,2]
[378045900,1754686238398,-295.93570552,0.00024657,2]
[378045901,1754686238407,-190.9,0.00024657,2]
[378045902,1754686238417,-170.93,0.00024657,2]
[378045903,1754686238426,-249.48,0.00024657,2]
[378045904,1754686238438,-267.15,0.00024657,2]
[378045905,1754686238448,-321.45138112,0.00024657,2]
[378045906,1754686238467,-1888.0,0.00019761,3]
[378045907,1754686238478,-868.97143506,0.00022001,3]
[378045926,1754686240028,-481.31,0.00022001,3]
[378045933,1754686240134,-711.47,0.00022001,3]
[378045944,1754686240293,-1714.24856494,0.00022001,3]
[378045946,1754686240303,-1031.75143506,0.00022501,3]
[378045948,1754686240314,-856.24856494,0.00022501,3]
[378045949,1754686240324,-236.03006315,0.00024657,2]
[378045951,1754686240335,-29.44993685,0.00024657,2]
[378045953,1754686240344,-261.62412461,0.00024657,2]
[378045955,1754686240355,-243.56587539,0.00024657,2]
[378045956,1754686240364,-341.38412461,0.00024657,2]
[378046150,1754686243068,-58.61587539,0.00024657,2]
[378046151,1754686243077,-400.0,0.00024657,2]
[378046152,1754686243087,-400.0,0.00024657,2]
[378046153,1754686243097,-400.0,0.00024657,2]
[378046154,1754686243108,-172.29,0.00024657,2]
[378046155,1754686243117,-500.0,0.00024657,2]
[378046156,1754686243126,-428.34,0.00024657,2]
[378046157,1754686243134,-223.96,0.00024657,2]
[378046158,1754686243144,-400.0,0.00024657,2]
[378046159,1754686243152,-528.71,0.00024657,2]
[378046160,1754686243161,-437.1,0.00024657,2]
[378046161,1754686243170,-370.33,0.00024657,2]
[378046162,1754686243180,-400.0,0.00024657,2]
[378046163,1754686243189,-400.0,0.00024657,2]
[378046164,1754686243198,-400.0,0.00024657,2]
[378046165,1754686243207,-114.66241603,0.00024657,2]
[378046166,1754686243218,-121.80758397,0.00024657,2]
[378046167,1754686243227,-400.0,0.00024657,2]
[378046168,1754686243236,-491.18,0.00024657,2]
[378046169,1754686243246,-223.05355372,0.00024657,2]
[378046170,1754686243255,-400.0,0.00024657,2]
[378046171,1754686243267,-400.0,0.00024657,2]
[378046172,1754686243276,-3026.45886231,0.00024657,2]
[378046173,1754686243294,-733.34113769,0.00024657,2]
[378046174,1754686243304,-272.13,0.00024657,2]
[378046175,1754686243313,-400.0,0.00024657,2]
[378046176,1754686243323,-400.0,0.00024657,2]
[378046177,1754686243332,-400.0,0.00024657,2]
[378046178,1754686243341,-400.0,0.00024657,2]
[378046179,1754686243351,-373.17665325,0.00024657,2]
[378046180,1754686243360,-480.40993367,0.00024657,2]
[378046181,1754686243371,-12.78434641,0.00024657,2]
[378046182,1754686243383,-1304.39807593,0.00024657,2]
[378046183,1754686243394,-873.67405816,0.00024657,2]
[378046184,1754686243409,-1358.8735195,0.00024657,2]
[378046185,1754686243419,-187.13369105,0.00024657,2]
[378046186,1754686243428,-400.0,0.00024657,2]
[378046187,1754686243438,-480.0,0.00024657,2]
[378046188,1754686243447,-400.0,0.00024657,2]
[378046189,1754686243456,-400.0,0.00024657,2]
[378046190,1754686243465,-400.0,0.00024657,2]
[378046191,1754686243474,-400.0,0.00024657,2]
[378046192,1754686243483,-300.79485604,0.00024657,2]
[378046193,1754686243507,-13.06514396,0.00024657,2]
[378046194,1754686243518,-319.69768316,0.00024657,2]
[378046200,1754686246113,-80.30231684,0.00024657,2]
[378046201,1754686246122,-400.0,0.00024657,2]
[378046202,1754686246131,-400.0,0.00024657,2]
[378046203,1754686246140,-400.0,0.00024657,2]
[378046204,1754686246150,-400.0,0.00024657,2]
[378046205,1754686246159,-400.0,0.00024657,2]
[378046206,1754686246168,-371.92,0.00024657,2]
[378046207,1754686246178,-400.0,0.00024657,2]
[378046208,1754686246188,-400.0,0.00024657,2]
[378046209,1754686246197,-400.0,0.00024657,2]
[378046210,1754686246206,-26.71185793,0.00024657,2]
[378046211,1754686246381,-373.28814207,0.00024657,2]
[378046212,1754686246390,-400.0,0.00024657,2]
[378046213,1754686246399,-400.0,0.00024657,2]
[378046214,1754686246408,-400.0,0.00024657,2]
[378046215,1754686246417,-400.0,0.00024657,2]
[378046216,1754686246426,-400.0,0.00024657,2]
[378046217,1754686246435,-400.0,0.00024657,2]
[378046218,1754686246444,-400.0,0.00024657,2]
[378046219,1754686246453,-400.0,0.00024657,2]
[378046220,1754686246462,-400.0,0.00024657,2]
[378046221,1754686246471,-400.0,0.00024657,2]
[378046222,1754686246480,-400.0,0.00024657,2]
[378046223,1754686246489,-400.0,0.00024657,2]
[378046224,1754686246498,-400.0,0.00024657,2]
[378046225,1754686246507,-337.73170459,0.00024657,2]
[378046226,1754686246516,-400.0,0.00024657,2]
[378046227,1754686246525,-483.55,0.00024657,2]
[378046228,1754686246534,-400.0,0.00024657,2]
[378046229,1754686246543,-319.76107598,0.00024657,2]
[378046230,1754686246554,-80.23892402,0.00024657,2]
[378046231,1754686246563,-568.58,0.00024657,2]
[378046232,1754686246573,-400.0,0.00024657,2]
[378046233,1754686246586,-400.0,0.00024657,2]
[378046234,1754686246600,-500.0,0.00024657,2]
[378046235,1754686246609,-400.0,0.00024657,2]
[378046236,1754686246618,-400.0,0.00024657,2]
[378046237,1754686246628,-400.0,0.00024657,2]
[378046238,1754686246637,-400.0,0.00024657,2]
[378046239,1754686246646,-400.0,0.00024657,2]
[378046240,1754686246655,-400.0,0.00024657,2]
[378046241,1754686246664,-333.22904684,0.00024657,2]
[378046242,1754686246673,-400.0,0.00024657,2]
[378046243,1754686246684,-400.0,0.00024657,2]
[378046244,1754686246693,-234.25981508,0.00024657,2]
[378046245,1754686246702,-286.23,0.00024657,2]
[378046246,1754686246711,-331.82,0.00024657,2]
[378046247,1754686246720,-400.0,0.00024657,2]
[378046248,1754686246728,-400.0,0.00024657,2]
[378046249,1754686246738,-400.0,0.00024657,2]
[378046250,1754686246748,-400.0,0.00024657,2]
[378046251,1754686246757,-400.0,0.00024657,2]
[378046252,1754686246766,-400.0,0.00024657,2]
[378046253,1754686246775,-400.0,0.00024657,2]
[378046254,1754686246784,-158.09,0.00024657,2]
[378046255,1754686246793,-331.82746686,0.00024657,2]
[378046257,1754686293941,174.15,0.00013699,2]
[378046262,1754687264432,173.64,0.00013699,2]
[378046263,1754687329390,-153.22,0.0001836,2]
[378046264,1754687329413,-300.0,0.0001868,2]
[378046265,1754687329437,-189.83,0.00019,2]
[378046267,1754687432572,-613.16,0.00019,2]
[378046268,1754687432582,-500.0,0.00019221,2]
[378046269,1754687432592,-300.0,0.00019441,2]
[378046270,1754687432602,-500.0,0.00019567,2]
[378046271,1754687432612,-153.22,0.00020091,2]
[378046272,1754687432621,-173.64,0.00020187,2]
[378046273,1754687432631,-500.0,0.00020196,2]
[378046274,1754687432641,-250.0,0.00020196,2]
[378046275,1754687432650,-300.0,0.00020196,2]
[378046276,1754687432659,-829.4358566,0.00020196,2]
[378046279,1754687438251,-969.59527454,0.00019721,3]
[378046280,1754687438411,-387.1074,0.00019721,3]
[378046281,1754687438521,-531.29732546,0.00019721,3]
[378046282,1754687438531,-111.72267454,0.00020196,2]
[378046348,1754687440298,-259.60347086,0.00020196,2]
[378046349,1754687440380,-1299.237998,0.00020196,2]
[378046350,1754687440390,-500.0,0.00020196,2]
[378046351,1754687440399,-43.99110202,0.00020196,2]
[378046352,1754687442707,-166.1190837,0.00020196,2]
[378046385,1754687558273,153.34,0.00017333,2]
[378046397,1754688276077,165.24,0.00013699,2]
[378046398,1754688336291,9773.60677919,9e-05,2]
[378046416,1754688636423,-151.0,0.00018251,2]
[378046417,1754688636433,-151.0,0.00018263,2]
[378046418,1754688636443,-151.0,0.00018273,2]
[378046419,1754688636452,-267.45859952,0.00018274,2]
[378046420,1754688636648,-232.54140048,0.00018274,2]
[378046421,1754688636658,-151.0,0.00018279,2]
[378046422,1754688636668,-500.0,0.00018424,2]
[378046423,1754688636677,-1949.50093473,0.0001896,2]
[378046424,1754688636687,-2800.55779454,0.0001896,2]
[378046425,1754688636696,-500.0,0.00018973,2]
[378046426,1754688636706,-500.0,0.00018998,2]
[378046427,1754688636715,-500.0,0.00018998,2]
[378046428,1754688636727,-500.0,0.00018998,2]
[378046429,1754688636738,-242.79835202,0.00018998,2]
[378046430,1754688636747,-500.0,0.00018998,2]
[378046431,1754688636756,-500.0,0.00018998,2]
[378046432,1754688636765,-500.0,0.00018998,2]
[378046433,1754688636774,-500.0,0.00018998,2]
[378046434,1754688636784,-500.0,0.00018998,2]
[378046435,1754688636795,-500.0,0.00018998,2]
[378046436,1754688636806,-500.0,0.00018998,2]
[378046437,1754688636817,-157.98245152,0.00018999,2]
[378046438,1754688636828,-46769.2674757,0.00018999,2]
[378046439,1754688636839,-10085.70792009,0.00018999,2]
[378046440,1754688636851,-1170.16900001,0.00018999,2]
[378046441,1754688636863,-1455.37791847,0.00018999,2]
[378046442,1754688636874,-9495.20724873,0.00018999,2]
[378046450,1754688637477,-306.62131376,0.00018999,2]
[378046451,1754688637696,-1888.0,0.00018999,2]
[378046455,1754688639439,-347.9600001,0.00018999,2]
[378046458,1754688639495,-322.08596973,0.00018999,2]
[378046459,1754688639608,-2311.71497188,0.00018999,2]
[378046460,1754688639620,-3157.45824893,0.00018999,2]
[378046461,1754688642731,-1219.06524866,0.00018999,2]
[378046462,1754688642744,-1777.08785739,0.00018999,2]
[378046463,1754688642758,-43064.50622441,0.00018999,2]
[378046464,1754688642767,-12671.60195187,0.00018999,2]
[378046465,1754688642777,-722.69,0.00019,2]
[378046466,1754688642786,-268067.99684591,0.00019,2]
[378046467,1754688642795,-174.7053737,0.0001906,2]
[378046468,1754688642804,-153.34,0.0001916,2]
[378046469,1754688642814,-1000.0,0.00019508,2]
[378046470,1754688642823,-172.2,0.00019988,2]
[378046471,1754688642832,-172.2,0.00020054,2]
[378046472,1754688642841,-500.0,0.00020101,2]
[378046473,1754688642851,-172.2,0.00020121,2]
[378046474,1754688642859,-165.24,0.00020187,2]
[378046475,1754688642869,-172.2,0.00020188,2]
[378046476,1754688642879,-500.0,0.00020242,2]
[378046477,1754688642888,-174.12,0.00020254,2]
[378046478,1754688642898,-300.0,0.00020489,2]
[378046479,1754688642907,-500.0,0.00020489,2]
[378046480,1754688642917,-250.0,0.00020489,2]
[378046481,1754688642926,-1949.50093467,0.00020731,2]
[378046482,1754688642935,-2800.55779446,0.00020731,2]
[378046483,1754688642944,-500.0,0.00020873,2]
[378046485,1754688642953,-585.58363503,0.00020873,2]
[378046486,1754688642962,-153.34,0.00020986,2]
[378046488,1754688642971,-515.0,0.00021041,2]
[378046490,1754688642981,-666.0,0.00021918,3]
[378046492,1754688642990,-5000.0,0.00021918,2]
[378046495,1754688643001,-1000.0,0.00021946,2]
[378046497,1754688643011,-169.69,0.00022416,2]
[378046498,1754688643020,-1949.50093467,0.00022502,2]
[378046499,1754688643029,-169.69,0.0002264,2]
[378046500,1754688643039,-23900.0,0.00022723,2]
[378046501,1754688643048,-181.43,0.00022726,2]
[378046502,1754688643058,-153.34,0.00022813,2]
[378046503,1754688643067,-679.36,0.00023081,2]
[378046504,1754688643077,-195.85,0.00023355,2]
[378046505,1754688643086,-1093.31252041,0.00023917,2]
[378046506,1754688643095,-5000.00053051,0.00024,5]
[378046507,1754688643105,-1949.50093467,0.00024273,2]
[378046508,1754688643114,-1000.0,0.00024385,2]
[378046509,1754688643124,-153.34,0.00024639,2]
[378046510,1754688643139,-457.64618948,0.0002464,2]
[378046511,1754688643149,-151.0,0.00024657,2]
[378046512,1754688643159,-400.0,0.00024657,2]
[378046513,1754688643168,-400.0,0.00024657,2]
[378046514,1754688643177,-236.01511883,0.00024657,2]
[378046515,1754688643187,-400.0,0.00024657,2]
[378046516,1754688643195,-400.0,0.00024657,2]
[378046517,1754688643205,-400.0,0.00024657,2]
[378046518,1754688643215,-487.92,0.00024657,2]
[378046519,1754688643231,-544.89,0.00024657,2]
[378046520,1754688643246,-400.0,0.00024657,2]
[378046521,1754688643256,-432.53922048,0.00024657,2]
[378046522,1754688643266,-265.38582377,0.00024657,2]
[378046523,1754688643276,-3603.15,0.00024657,2]
[378046524,1754688643286,-400.0,0.00024657,2]
[378046525,1754688643296,-400.0,0.00024657,2]
[378046526,1754688643309,-385.22,0.00024657,2]
[378046527,1754688643318,-400.0,0.00024657,2]
[378046528,1754688643328,-400.0,0.00024657,2]
[378046529,1754688643338,-360.34430582,0.00024657,2]
[378046530,1754688643348,-355.7,0.00024657,2]
[378046531,1754688643357,-460.0,0.00024657,2]
[378046532,1754688643366,-400.0,0.00024657,2]
[378046533,1754688643375,-1000.0,0.00024658,2]
[378046534,1754688643385,-500.0,0.00024773,2]
[378046535,1754688643394,-500.0,0.00024773,2]
[378046536,1754688643403,-500.0,0.00024773,2]
[378046537,1754688643412,-150.0,0.0002479,2]
[378046538,1754688643420,-150.0,0.0002479,2]
[378046539,1754688643430,-150.0,0.0002479,2]
[378046540,1754688643439,-150.0,0.0002479,2]
[378046541,1754688643448,-150.0,0.0002479,2]
[378046542,1754688643457,-150.72462576,0.0002479,2]
[378046543,1754688643466,-811.32092182,0.000248,2]
[378046544,1754688643476,-1300.0,0.000248,9]
[378046545,1754688643486,-86890.29381767,0.000248,3]
[378046546,1754688643503,-2038.57530701,0.000248,3]
[378046547,1754688643514,-5445.33207382,0.000248,3]
[378046548,1754688643523,-842.44706758,0.000248,3]
[378046549,1754688643532,-9920.01245858,0.0002487,3]
[378046550,1754688645584,-1888.0,0.00020008,3]
[378046551,1754688645593,-3061.33855472,0.00022248,3]
[378046552,1754688645940,-1143.97892178,0.00020508,3]
[378046553,1754688645952,-744.02107822,0.00020508,3]
[378046554,1754688645962,-303.58620553,0.00022248,3]
[378046559,1754689405271,175.91,0.00013699,2]
[378046561,1754689627244,177.05,0.00017212,2]
[378046566,1754689831733,-151.0,0.00018275,2]
[378046567,1754689831742,-151.0,0.00018295,2]
[378046568,1754689831751,-29.16,0.00018302,2]
[378046569,1754689831762,-470.84,0.00018302,2]
[378046570,1754689831771,-166.66666667,0.00018313,2]
[378046571,1754689831780,-273.21653476,0.00018314,2]
[378046572,1754689831792,-226.78346524,0.00018314,2]
[378046573,1754689831801,-300.0,0.00018333,2]
[378046574,1754689831812,-250.0,0.00018333,2]
[378046575,1754689831821,-500.0,0.00018361,2]
[378046576,1754689831830,-177.05,0.00018942,2]
[378046577,1754689831839,-650.42,0.00019,2]
[378046578,1754689831849,-500.0,0.00020124,2]
[378046579,1754689831858,-433.15213757,0.00020144,2]
[378046580,1754689831869,-66.84786243,0.00020144,2]
[378046581,1754689831878,-300.0,0.00020144,2]
[378046582,1754689831887,-250.0,0.00020144,2]
[378046583,1754689831897,-175.91,0.00020187,2]
[378046584,1754689831907,-38.89262998,0.00020246,2]
[378046585,1754689831919,-1161.10737002,0.00020246,2]
[378046586,1754689831928,-3161.3704311,0.00020267,2]
[378046587,1754689831950,-1104.44767375,0.00020267,2]
[378046588,1754689831962,-177.05,0.00020672,2]
[378046589,1754689831972,-600.0,0.00021719,2]
[378046590,1754689831982,-546.49,0.00021719,2]
[378046591,1754689831993,-590.83,0.00022156,2]
[378046592,1754689832005,-1000.0,0.00022173,2]
[378046593,1754689832016,-985.0,0.00022194,2]
[378046594,1754689832025,-6685.04,0.00022211,2]
[378046595,1754689832035,-666.0,0.00022226,3]
[378046596,1754689832044,-411.07523975,0.00022248,3]
[378046597,1754689832053,-5699.64,0.00022261,2]
[378046598,1754689832062,-3949.94178118,0.00022379,2]
[378046599,1754689832073,-1050.05821882,0.00022379,2]
[378046600,1754689832082,-177.05,0.00022403,2]
[378046601,1754689832092,-2864.15540215,0.00022414,2]
[378046602,1754689832104,-18324.05459785,0.00022414,2]
[378046603,1754689832113,-8096.16912141,0.00022527,2]
[378046604,1754689832122,-195.85,0.00022624,2]
[378046605,1754689832131,-169.69,0.00022729,2]
[378046607,1754689832141,-254.0,0.00022765,2]
[378046608,1754689832150,-500.0,0.00022825,2]
[378046609,1754689832159,-154.78,0.00022825,2]
[378046610,1754689832169,-2704.74,0.00022835,2]
[378046611,1754689832178,-582.53315022,0.00022837,2]
[378046612,1754689832188,-154.89,0.00022887,2]
[378046613,1754689832198,-154.33,0.00022892,2]
[378046614,1754689832209,-457.64618948,0.00023564,2]
[378046615,1754689832219,-515.0,0.00023606,2]
[378046616,1754689832228,-418.95198532,0.00023611,2]
[378046617,1754689832239,-2566.63550295,0.00023923,2]
[378046618,1754689832255,-854.98850595,0.00023923,2]
[378046777,1754689837663,-949.29849257,0.00020624,3]
[378046778,1754689837831,-938.70150743,0.00020624,3]
[378046779,1754689837841,-875.74666455,0.00022864,3]
[378046813,1754689839812,-1888.0,0.00021124,3]
[378046815,1754689839822,-2900.25333545,0.00022864,3]
[378046817,1754689839831,-1842.06767888,0.00023364,3]
[378046819,1754689839848,-311.86127415,0.00023364,3]
[378046827,1754689839908,-1622.07104697,0.00023364,3]
[378046829,1754689839918,-1780.61146422,0.00023923,2]
[378046835,1754689839966,-894.525,0.00023923,2]
[378046840,1754689840025,-9823.1716985,0.00023923,2]
[378046842,1754689840035,-728.87501361,0.00024056,2]
[378046844,1754689840044,-177.05,0.00024133,2]
[378046846,1754689840053,-154.33,0.00024418,2]
[378046848,1754689840062,-845.27,0.00024657,2]
[378046850,1754689840072,-400.0,0.00024657,2]
[378046852,1754689840081,-443.18986322,0.00024657,2]
[378046854,1754689840090,-188.71,0.00024657,2]
[378046856,1754689840099,-400.0,0.00024657,2]
[378046858,1754689840109,-228.23577533,0.00024657,2]
[378046860,1754689840118,-297.1,0.00024657,2]
[378046862,1754689840127,-446.48,0.00024657,2]
[378046864,1754689840136,-236.7,0.00024657,2]
[378046866,1754689840145,-400.0,0.00024657,2]
[378046868,1754689840155,-412.92,0.00024657,2]
[378046870,1754689840164,-411.2,0.00024657,2]
[378046872,1754689840175,-211.75,0.00024657,2]
[378046874,1754689840184,-400.0,0.00024657,2]
[378046876,1754689840193,-403.35,0.00024657,2]
[378046878,1754689840203,-400.0,0.00024657,2]
[378046880,1754689840211,-400.0,0.00024657,2]
[378046882,1754689840220,-400.0,0.00024657,2]
[378046884,1754689840230,-400.0,0.00024657,2]
[378046886,1754689840240,-468.15,0.00024657,2]
[378046888,1754689840249,-421.85,0.00024657,2]
[378046890,1754689840258,-400.0,0.00024657,2]
[378046892,1754689840268,-337.50192561,0.00024657,2]
[378046894,1754689840278,-400.0,0.00024657,2]
[378046896,1754689840287,-500.0,0.00024657,2]
[378046898,1754689840296,-400.0,0.00024657,2]
[378046900,1754689840306,-400.0,0.00024657,2]
[378046902,1754689840316,-152.36122443,0.00024657,2]
[378046904,1754689840325,-407.50562857,0.00024657,2]
[378046906,1754689840335,-400.0,0.00024657,2]
[378046908,1754689840344,-400.0,0.00024657,2]
[378046910,1754689840353,-400.0,0.00024657,2]
[378046913,1754689840363,-400.0,0.00024657,2]
[378046914,1754689840372,-1000.0,0.00024658,2]
[378046916,1754689840381,-1072.582,0.00024773,8]
[378046918,1754689840390,-154.89,0.00024776,2]
[378046921,1754689840401,-174.70537369,0.0002479,2]
[378046922,1754689840410,-3787.68911799,0.0002479,2]
[378046924,1754689840419,-598.29,0.00024799,2]
[378046926,1754689840428,-151.0,0.000248,7]
[378046929,1754689840440,-184.54388183,0.000248,2]
[378046931,1754689840449,-695.41793298,0.000248,2]
[378046933,1754689840458,-1200.0,0.000248,9]
[378046935,1754689840467,-2361.2,0.00024843,2]
[378046937,1754689840476,-200.0,0.0002487,2]
[378046939,1754689840486,-1126.0982972,0.0002487,2]
[378046941,1754689840495,-156.90613268,0.00024879,2]
[378046943,1754689840504,-185.46870829,0.00024879,2]
[378046945,1754689840513,-151.0,0.0002488,7]
[378046947,1754689840522,-151.0,0.0002488,7]
[378046949,1754689840531,-151.0,0.0002488,7]
[378046951,1754689840540,-151.0,0.0002488,7]
[378046953,1754689840550,-203.99996,0.0002488,7]
[378046954,1754689840560,-202.048321,0.0002488,7]
[378046955,1754689840570,-400.0,0.0002488,2]
[378046957,1754689840579,-842.44706758,0.0002488,3]
[378046958,1754689840589,-160.0,0.0002488,3]
[378046959,1754689840598,-127900.76861,0.0002488,3]
[378046960,1754689840608,-457.64618948,0.0002488,3]
[378046961,1754689840621,-211.62674257,0.0002488,3]
[378046962,1754689840631,-400.0,0.00024888,2]
[378046963,1754689840640,-522.19,0.00024888,2]
[378046964,1754689840649,-400.0,0.00024888,2]
[378046965,1754689840659,-3453.01,0.00024888,2]
[378046966,1754689840668,-400.0,0.00024888,2]
[378046967,1754689840678,-162.9660088,0.00024889,2]
[378046968,1754689840687,-190.05232304,0.00024889,2]
[378046969,1754689840698,-400.0,0.00024889,2]
[378046970,1754689840708,-201.0,0.00024889,2]
[378046971,1754689840717,-400.0,0.00024889,2]
[378046972,1754689840726,-400.0,0.00024889,2]
[378046973,1754689840736,-392.61896254,0.00024889,2]
[378046974,1754689840745,-400.0,0.00024889,2]
[378046975,1754689840754,-300.0,0.00024889,2]
[378046976,1754689840763,-400.0,0.00024889,2]
[378046977,1754689840772,-400.0,0.00024889,2]
[378046978,1754689840781,-378.41,0.00024889,2]
[378046979,1754689840791,-400.0,0.00024889,2]
[378046980,1754689840800,-400.0,0.00024889,2]
[378046981,1754689840809,-400.0,0.00024889,2]
[378046982,1754689840818,-400.0,0.00024889,2]
[378046983,1754689840828,-400.0,0.00024889,2]
[378046984,1754689840837,-500.0,0.00024889,2]
[378046985,1754689840846,-400.0,0.00024889,2]
[378046986,1754689840855,-400.0,0.00024889,2]
[378046987,1754689840865,-400.0,0.00024889,2]
[378046988,1754689840874,-3752.22,0.00024889,2]
[378046989,1754689840883,-400.0,0.00024889,2]
[378046990,1754689840892,-400.0,0.00024889,2]
[378046991,1754689840901,-400.0,0.00024889,2]
[378046992,1754689840910,-339.0,0.00024889,2]
[378046993,1754689840919,-400.0,0.00024889,2]
[378046994,1754689840928,-400.0,0.00024889,2]
[378046995,1754689840938,-400.0,0.00024889,2]
[378046996,1754689840947,-400.0,0.00024889,2]